fUST/lending_fUST_20250522
["ID","MTS","AMOUNT","RATE_DAILY","PERIOD"]
[361992830,1747926666447,-430.0,0.00023561,2]
[361992831,1747926666456,-2262.35,0.00023561,2]
[361992832,1747926666466,-430.0,0.00023561,2]
[361992833,1747926666475,-787.26,0.00023561,2]
[361992834,1747926666484,-6829.31,0.00023561,2]
[361992835,1747926666494,-430.0,0.00023561,2]
[361992836,1747926666503,-857.92,0.00023561,2]
[361992837,1747926666512,-430.0,0.00023561,2]
[361992838,1747926666522,-430.0,0.00023561,2]
[361992839,1747926666532,-8531.82,0.00023561,2]
[361992840,1747926666542,-1573.64,0.00023561,2]
[361992841,1747926666551,-2598.72,0.00023561,2]
[361992842,1747926666560,-466.93,0.00023561,2]
[361992843,1747926666570,-482.75,0.00023561,2]
[361992844,1747926666579,-697.24,0.00023561,2]
[361992845,1747926666588,-1341.05,0.00023561,2]
[361992846,1747926666598,-1278.1,0.00023561,2]
[361992847,1747926666607,-874.86,0.00023561,2]
[361992848,1747926666617,-1345.18,0.00023561,2]
[361992849,1747926666627,-1197.73,0.00023561,2]
[361992850,1747926666636,-430.0,0.00023561,2]
[361992851,1747926666647,-1961.84,0.00023561,2]
[361992852,1747926666656,-1982.22,0.00023561,2]
[361992853,1747926666666,-430.0,0.00023561,2]
[361992854,1747926666676,-430.0,0.00023561,2]
[361992855,1747926666686,-430.0,0.00023561,2]
[361992856,1747926666696,-588.92,0.00023561,2]
[361992857,1747926666706,-3225.77,0.00023561,2]
[361992858,1747926666716,-603.83,0.00023561,2]
[361992859,1747926666726,-1245.97,0.00023561,2]
[361992860,1747926666735,-518.59,0.00023561,2]
[361992861,1747926666746,-1084.72,0.00023561,2]
[361992862,1747926666756,-430.0,0.00023561,2]
[361992863,1747926666765,-608.2,0.00023561,2]
[361992864,1747926666774,-5501.76,0.00023561,2]
[361992865,1747926666784,-1049.16,0.00023561,2]
[361992866,1747926666794,-430.0,0.00023561,2]
[361992867,1747926666806,-559.31,0.00023561,2]
[361992868,1747926666817,-430.0,0.00023561,2]
[361992869,1747926666827,-984.02,0.00023561,2]
[361992870,1747926666952,-2036.45,0.00023561,2]
[361992871,1747926666963,-1241.28,0.00023561,2]
[361992872,1747926666973,-430.0,0.00023561,2]
[361992873,1747926666983,-445.96,0.00023561,2]
[361992874,1747926666994,-2919.95,0.00023561,2]
[361992875,1747926667004,-868.53,0.00023561,2]
[361992876,1747926667014,-430.0,0.00023561,2]
[361992877,1747926667024,-905.89,0.00023561,2]
[361992878,1747926667035,-2368.71,0.00023561,2]
[361992879,1747926667046,-953.67,0.00023561,2]
[361992880,1747926667056,-430.0,0.00023561,2]
[361992881,1747926667066,-430.0,0.00023561,2]
[361992882,1747926667076,-770.83,0.00023561,2]
[361992883,1747926667086,-1055.49,0.00023561,2]
[361992884,1747926667095,-1073.35,0.00023561,2]
[361992885,1747926667104,-2718.41,0.00023561,2]
[361992886,1747926667115,-430.0,0.00023561,2]
[361992887,1747926667125,-1453.44,0.00023561,2]
[361992888,1747926667135,-2721.44,0.00023561,2]
[361992889,1747926667145,-1170.0,0.00023561,2]
[361992890,1747926667156,-430.0,0.00023561,2]
[361992891,1747926667166,-1001.1,0.00023561,2]
[361992892,1747926667177,-276.92437452,0.00023561,2]
[361992893,1747926667186,-1024.12,0.00023561,2]
[361992894,1747926667196,-511.14,0.00023561,2]
[361992895,1747926667205,-2869.25,0.00023561,2]
[361992896,1747926667215,-430.0,0.00023561,2]
[361992897,1747926667225,-1084.85,0.00023561,2]
[361992898,1747926667235,-430.0,0.00023561,2]
[361992899,1747926667245,-1629.5,0.00023561,2]
[361992900,1747926667254,-1727.46,0.00023561,2]
[361992901,1747926667264,-7382.0165825,0.00023567,2]
[361992902,1747926667274,-500.0,0.00023574,2]
[361992903,1747926667284,-500.0,0.00023574,2]
[361992904,1747926667294,-438.76396021,0.00023574,2]
[361992905,1747926667303,-500.0,0.00023574,2]
[361992906,1747926667312,-500.0,0.00023574,2]
[361992907,1747926667323,-500.0,0.00023574,2]
[361992908,1747926667334,-500.0,0.00023574,2]
[361992909,1747926667344,-500.79782686,0.00023574,2]
[361992910,1747926667354,-500.0,0.00023574,2]
[361992911,1747926667364,-600.0,0.00023574,2]
[361992912,1747926667375,-500.0,0.00023574,2]
[361992913,1747926667384,-500.0,0.00023574,2]
[361992914,1747926667394,-500.0,0.00023574,2]
[361992915,1747926667404,-500.82401651,0.00023574,2]
[361992916,1747926667413,-500.0,0.00023574,2]
[361992917,1747926667423,-500.0,0.00023574,2]
[361992918,1747926667434,-500.0,0.00023574,2]
[361992919,1747926667444,-525.07549888,0.00023574,2]
[361992920,1747926667454,-500.0,0.00023574,2]
[361992921,1747926667463,-151.11080258,0.00023574,2]
[361992922,1747926667474,-159.05485592,0.00023589,2]
[361992923,1747926667483,-2000.0,0.00023616,2]
[361992924,1747926667494,-4939.31440167,0.00023659,9]
[361992925,1747926667504,-18901.09,0.000237,14]
[361992926,1747926667514,-800.0,0.00023721,2]
[361992927,1747926667524,-1100.0,0.00023735,2]
[361992928,1747926667534,-1000.0,0.00023735,2]
[361992929,1747926667543,-1000.0,0.00023735,2]
[361992930,1747926667552,-159.05485592,0.00023753,2]
[361992931,1747926667562,-800.0,0.00023761,2]
[361992932,1747926667572,-800.0,0.00023788,2]
[361992933,1747926667581,-1504.95411463,0.00023816,2]
[361992934,1747926667592,-2000.0,0.00023816,2]
[361992935,1747926667603,-800.0,0.0002382,2]
[361992936,1747926667612,-7382.0165825,0.00023833,2]
[361992937,1747926667622,-431.63136322,0.00023835,2]
[361992938,1747926667632,-430.0,0.00023835,2]
[361992939,1747926667642,-430.0,0.00023835,2]
[361992940,1747926667651,-609.44,0.00023835,2]
[361992941,1747926667661,-430.0,0.00023835,2]
[361992942,1747926667672,-430.0,0.00023835,2]
[361992943,1747926667682,-573.04,0.00023835,2]
[361992944,1747926667691,-430.0,0.00023835,2]
[361992945,1747926667701,-510.18,0.00023835,2]
[361992946,1747926667710,-430.0,0.00023835,2]
[361992947,1747926667720,-430.0,0.00023835,2]
[361992948,1747926667729,-430.0,0.00023835,2]
[361992949,1747926667739,-430.0,0.00023835,2]
[361992950,1747926667750,-430.0,0.00023835,2]
[361992951,1747926667759,-1204.87,0.00023835,2]
[361992952,1747926667768,-701.17,0.00023835,2]
[361992953,1747926667778,-437.85,0.00023835,2]
[361992954,1747926667787,-473.75,0.00023835,2]
[361992955,1747926667797,-430.0,0.00023835,2]
[361992956,1747926667807,-1269.29,0.00023835,2]
[361992957,1747926667817,-430.0,0.00023835,2]
[361992958,1747926667827,-430.0,0.00023835,2]
[361992959,1747926667836,-450.0,0.00023835,2]
[361992960,1747926667845,-430.0,0.00023835,2]
[361992961,1747926667855,-430.0,0.00023835,2]
[361992962,1747926667864,-200.62,0.00023835,2]
[361992963,1747926667874,-1336.32,0.00023835,2]
[361992964,1747926667884,-430.0,0.00023835,2]
[361992965,1747926667893,-2727.22,0.00023835,2]
[361992966,1747926667903,-520.87,0.00023835,2]
[361992967,1747926667913,-715.26,0.00023835,2]
[361992968,1747926667923,-430.0,0.00023835,2]
[361992969,1747926667933,-3852.36,0.00023835,2]
[361992970,1747926667943,-1218.87,0.00023835,2]
[361992971,1747926667953,-1457.88,0.00023835,2]
[361992972,1747926667962,-430.0,0.00023835,2]
[361992973,1747926667972,-1348.45,0.00023835,2]
[361992974,1747926667982,-430.0,0.00023835,2]
[361992975,1747926667993,-2262.35,0.00023835,2]
[361992976,1747926668003,-430.0,0.00023835,2]
[361992977,1747926668013,-787.26,0.00023835,2]
[361992978,1747926668023,-6829.31,0.00023835,2]
[361992979,1747926668034,-430.0,0.00023835,2]
[361992980,1747926668044,-857.92,0.00023835,2]
[361992981,1747926668054,-430.0,0.00023835,2]
[361992982,1747926668063,-430.0,0.00023835,2]
[361992983,1747926668073,-8531.82,0.00023835,2]
[361992984,1747926668082,-1573.64,0.00023835,2]
[361992985,1747926668091,-2598.72,0.00023835,2]
[361992986,1747926668101,-466.93,0.00023835,2]
[361992987,1747926668111,-482.75,0.00023835,2]
[361992988,1747926668120,-697.24,0.00023835,2]
[361992989,1747926668130,-1341.05,0.00023835,2]
[361992990,1747926668141,-1278.1,0.00023835,2]
[361992991,1747926668151,-874.86,0.00023835,2]
[361992992,1747926668160,-1345.18,0.00023835,2]
[361992993,1747926668170,-1197.73,0.00023835,2]
[361992994,1747926668180,-430.0,0.00023835,2]
[361992995,1747926668190,-1961.84,0.00023835,2]
[361992996,1747926668199,-1982.22,0.00023835,2]
[361992997,1747926668209,-430.0,0.00023835,2]
[361992998,1747926668220,-430.0,0.00023835,2]
[361992999,1747926668231,-430.0,0.00023835,2]
[361993000,1747926668240,-588.92,0.00023835,2]
[361993001,1747926668249,-3225.77,0.00023835,2]
[361993002,1747926668259,-603.83,0.00023835,2]
[361993003,1747926668269,-1245.97,0.00023835,2]
[361993004,1747926668279,-518.59,0.00023835,2]
[361993005,1747926668289,-1084.72,0.00023835,2]
[361993006,1747926668299,-430.0,0.00023835,2]
[361993007,1747926668308,-608.2,0.00023835,2]
[361993008,1747926668318,-5501.76,0.00023835,2]
[361993009,1747926668331,-1049.16,0.00023835,2]
[361993010,1747926668341,-430.0,0.00023835,2]
[361993011,1747926668351,-559.31,0.00023835,2]
[361993012,1747926668361,-430.0,0.00023835,2]
[361993013,1747926668371,-984.02,0.00023835,2]
[361993014,1747926668380,-2036.45,0.00023835,2]
[361993015,1747926668390,-1241.28,0.00023835,2]
[361993016,1747926668400,-430.0,0.00023835,2]
[361993017,1747926668410,-445.96,0.00023835,2]
[361993018,1747926668420,-2919.95,0.00023835,2]
[361993019,1747926668431,-868.53,0.00023835,2]
[361993020,1747926668442,-430.0,0.00023835,2]
[361993021,1747926668451,-905.89,0.00023835,2]
[361993022,1747926668461,-2368.71,0.00023835,2]
[361993023,1747926668471,-953.67,0.00023835,2]
[361993024,1747926668481,-483.43098878,0.00023835,2]
[361993025,1747926668491,-430.0,0.00023835,2]
[361993026,1747926668502,-770.83,0.00023835,2]
[361993027,1747926668512,-1055.49,0.00023835,2]
[361993028,1747926668522,-1073.35,0.00023835,2]
[361993029,1747926668531,-2718.41,0.00023835,2]
[361993030,1747926668541,-430.0,0.00023835,2]
[361993031,1747926668551,-1453.44,0.00023835,2]
[361993032,1747926668562,-2721.44,0.00023835,2]
[361993033,1747926668572,-1170.0,0.00023835,2]
[361993034,1747926668582,-430.0,0.00023835,2]
[361993035,1747926668592,-1001.1,0.00023835,2]
[361993036,1747926668604,-1024.12,0.00023835,2]
[361993037,1747926668614,-511.14,0.00023835,2]
[361993038,1747926668624,-2869.25,0.00023835,2]
[361993039,1747926668634,-430.0,0.00023835,2]
[361993040,1747926668645,-1084.85,0.00023835,2]
[361993041,1747926668656,-430.0,0.00023835,2]
[361993042,1747926668665,-1629.5,0.00023835,2]
[361993043,1747926668675,-1727.46,0.00023835,2]
[361993044,1747926668686,-697.66,0.00023835,2]
[361993045,1747926668696,-800.0,0.00023849,2]
[361993046,1747926668707,-151.0,0.00023862,2]
[361993047,1747926668717,-223.0315306,0.00023862,2]
[361993048,1747926668726,-5000.0,0.00023864,2]
[361993049,1747926668735,-4939.31440167,0.00023866,10]
[361993050,1747926668745,-1013.0,0.0002387,30]
[361993051,1747926668755,-800.0,0.00023874,2]
[361993052,1747926668765,-800.0,0.00023899,2]
[361993053,1747926668774,-1500.0,0.000239,2]
[361993054,1747926668785,-1500.0,0.000239,2]
[361993055,1747926668795,-1500.0,0.000239,2]
[361993056,1747926668804,-1500.0,0.000239,2]
[361993057,1747926668814,-1500.0,0.000239,2]
[361993058,1747926668824,-1500.0,0.000239,2]
[361993059,1747926668834,-1799.75,0.000239,2]
[361993060,1747926668844,-1500.0,0.000239,2]
[361993061,1747926668854,-1500.0,0.000239,2]
[361993062,1747926668865,-1500.0,0.000239,2]
[361993063,1747926668875,-1500.0,0.000239,2]
[361993064,1747926668884,-156.0,0.000239,2]
[361993065,1747926668894,-10012.64899,0.000239,2]
[361993066,1747926668904,-159.05485592,0.00023918,2]
[361993067,1747926668915,-187.0,0.0002395,120]
[361993068,1747926668924,-187.0,0.0002396,120]
[361993069,1747926668935,-187.0,0.0002396,120]
[361993070,1747926668945,-187.0,0.0002397,120]
[361993071,1747926668956,-187.0,0.0002397,120]
[361993072,1747926668965,-500.0,0.00023973,2]
[361993073,1747926668975,-500.0,0.00023973,2]
[361993074,1747926668985,-500.0,0.00023973,2]
[361993075,1747926668994,-500.0,0.00023973,2]
[361993076,1747926669003,-152.19365643,0.00023973,2]
[361993077,1747926669013,-500.0,0.00023973,2]
[361993078,1747926669023,-500.0,0.00023973,2]
[361993079,1747926669032,-500.0,0.00023973,2]
[361993080,1747926669042,-500.0,0.00023973,2]
[361993081,1747926669051,-500.0,0.00023973,2]
[361993082,1747926669061,-500.0,0.00023973,2]
[361993083,1747926669070,-500.0,0.00023973,2]
[361993084,1747926669080,-500.0,0.00023973,2]
[361993085,1747926669090,-500.0,0.00023973,2]
[361993086,1747926669100,-500.0,0.00023973,2]
[361993087,1747926669110,-200.0,0.0002398,9]
[361993088,1747926669119,-1000.0,0.00023984,2]
[361993089,1747926669127,-1000.0,0.00023984,2]
[361993090,1747926669136,-1001.81390891,0.00023984,2]
[361993091,1747926669146,-1065.61789726,0.00023984,2]
[361993092,1747926669155,-395127.91336546,0.00024,30]
[361993093,1747926669164,-30000.0,0.00024,2]
[361993094,1747926669174,-560.0,0.00024,2]
[361993095,1747926669185,-2067.338512,0.00024,31]
[361993096,1747926669194,-227733.40108948,0.00024,60]
[361993097,1747926669204,-1846580.82,0.00024,30]
[361993098,1747926669214,-2146.73235429,0.00024,2]
[361993099,1747926669223,-381.06280225,0.00024,3]
[361993100,1747926669233,-46719.0,0.00024,2]
[361993101,1747926669243,-277400.04972498,0.00024,30]
[361993102,1747926669572,-553.4,0.00024,30]
[361993103,1747926670233,-500.0,0.00017867,2]
[361993104,1747926670243,-323.03681146,0.00017867,2]
[361993105,1747926670252,-500.0,0.00017867,2]
[361993106,1747926670262,-500.0,0.00017867,2]
[361993107,1747926670271,-500.0,0.00017867,2]
[361993108,1747926670280,-500.0,0.00017867,2]
[361993109,1747926670291,-500.0,0.00017867,2]
[361993110,1747926670301,-500.0,0.00017867,2]
[361993111,1747926670311,-158.59444123,0.00017867,2]
[361993112,1747926670321,-392.86328296,0.00017867,2]
[361993113,1747926670337,-500.0,0.00017867,2]
[361993114,1747926670347,-500.0,0.00017867,2]
[361993115,1747926670356,-393.80989358,0.00017867,2]
[361993116,1747926670367,-302.74336748,0.00017867,2]
[361993117,1747926670376,-500.0,0.00017867,2]
[361993118,1747926670385,-500.0,0.00017867,2]
[361993119,1747926670395,-500.0,0.00017867,2]
[361993120,1747926670404,-500.0,0.00017867,2]
[361993121,1747926670414,-500.0,0.00017867,2]
[361993122,1747926670423,-500.0,0.00017867,2]
[361993123,1747926670433,-500.0,0.00017867,2]
[361993124,1747926670443,-500.0,0.00017867,2]
[361993125,1747926670452,-500.0,0.00017867,2]
[361993126,1747926670461,-500.0,0.00017867,2]
[361993127,1747926670471,-500.0,0.00017867,2]
[361993128,1747926670480,-500.0,0.00017867,2]
[361993129,1747926670490,-500.0,0.00017867,2]
[361993130,1747926670500,-500.0,0.00017867,2]
[361993131,1747926670510,-500.0,0.00017867,2]
[361993132,1747926670520,-156.98026629,0.00017867,2]
[361993133,1747926670530,-500.0,0.00017867,2]
[361993134,1747926670539,-500.0,0.00017867,2]
[361993135,1747926670549,-500.0,0.00017867,2]
[361993136,1747926670559,-500.0,0.00017867,2]
[361993137,1747926670569,-500.0,0.00017867,2]
[361993138,1747926670579,-500.0,0.00017867,2]
[361993139,1747926670588,-500.0,0.00017867,2]
[361993140,1747926670597,-500.0,0.00017867,2]
[361993141,1747926670607,-500.0,0.00017867,2]
[361993142,1747926670617,-300.0,0.00017869,2]
[361993143,1747926670627,-500.0,0.00019178,2]
[361993144,1747926670637,-566.07178794,0.00019178,2]
[361993145,1747926670646,-420.0,0.000195,2]
[361993146,1747926670656,-315.0,0.000203,2]
[361993147,1747926670665,-315.0,0.000203,2]
[361993148,1747926670675,-697.66,0.00023935,6]
[361993149,1747926670685,-408480.16177357,0.00024,30]
[361993150,1747926670909,-131393.0,0.00024,30]
[361993151,1747926670922,-825.63108675,0.00024,30]
[361993152,1747926670935,-10463.34814222,0.00024,30]
[361993153,1747926670946,-9309.77831949,0.00024,30]
[361993154,1747926670958,-2669.69999999,0.00024,30]
[361993155,1747926671223,-330.154,0.00017688,2]
[361993156,1747926671235,-1777.996692,0.00017688,2]
[361993157,1747926671247,-2891.849308,0.00017688,2]
[361993158,1747926671257,-242.870688,0.00017867,2]
[361993159,1747926671783,-257.129312,0.00017867,2]
[361993160,1747926671794,-587.0,0.00021279,2]
[361993161,1747926671803,-248.727238,0.00021917,2]
[361993162,1747926671813,-248.727238,0.00021917,2]
[361993163,1747926671823,-185.28586593,0.00021917,2]
[361993164,1747926671910,-63.44137207,0.00021917,2]
[361993165,1747926671920,-248.727238,0.00021919,7]
[361993166,1747926671930,-248.727238,0.00022191,7]
[361993167,1747926671940,-248.727238,0.00022191,7]
[361993168,1747926671951,-248.727238,0.00022191,7]
[361993169,1747926671960,-248.727238,0.00022282,7]
[361993170,1747926671970,-1226.12243794,0.00024,30]
[361993171,1747926685571,-470.59670027,0.00017687,2]
[361993179,1747927035505,162.474762,0.00013699,2]
[361993180,1747927435113,6000.0,0.00016,2]
[361993220,1747927712325,6232.06970447,0.0002,120]
[361993277,1747927832406,-1111.614019,0.00017799,2]
[361993279,1747927832419,-88.385981,0.00017799,2]
[361993281,1747927832431,-940.66988608,0.000178,2]
[361993284,1747927832453,-3076.40902139,0.000178,2]
[361993286,1747927832463,-269.498783,0.00017804,2]
[361993288,1747927832473,-300.0,0.00017999,2]
[361993290,1747927832483,-300.0,0.00017999,2]
[361993292,1747927832493,-300.0,0.00017999,2]
[361993294,1747927832504,-3074.73496718,0.00018,2]
[361993296,1747927832514,-3371.5423382,0.00018151,2]
[361993298,1747927832524,-300.0,0.00018739,2]
[361993300,1747927832535,-192.0,0.0001874,3]
[361993302,1747927832545,-11640.0274523,0.000188,2]
[361993304,1747927832556,-25173.6146998,0.00018801,2]
[361993307,1747927832569,-24826.3853002,0.00018801,2]
[361993309,1747927832581,-154.86776595,0.00018801,2]
[361993311,1747927832591,-500.0,0.00018801,2]
[361993313,1747927832602,-533.63815194,0.00018801,2]
[361993315,1747927832612,-500.0,0.00018801,2]
[361993317,1747927832622,-515.69802663,0.00018801,2]
[361993319,1747927832633,-24900.0,0.00018804,2]
[361993321,1747927832643,-1680.0,0.0001952,2]
[361993323,1747927832654,-220.497429,0.00019605,2]
[361993325,1747927832664,-420.0,0.00019639,2]
[361993327,1747927832674,-287.0,0.00019639,2]
[361993329,1747927832684,-10000.0,0.0001974,2]
[361993331,1747927832695,-1000.0,0.0002,2]
[361993333,1747927832708,-4006.0,0.0002,2]
[361993335,1747927832719,-157.89,0.0002,2]
[361993337,1747927832732,-29210.47500194,0.0002,2]
[361993390,1747927838284,-667.27857388,0.00018613,2]
[361993395,1747927838479,-4332.72142612,0.00018613,2]
[361993396,1747927838489,-168.41089185,0.000188,2]
[361993397,1747927838499,-300.0,0.00019997,2]
[361993399,1747927838508,-500.0,0.00019998,2]
[361993401,1747927838518,-500.0,0.00019998,2]
[361993403,1747927838527,-301.45219397,0.00019998,2]
[361993405,1747927838537,-216.50528792,0.00019998,2]
[361993407,1747927838547,-500.0,0.00019998,2]
[361993409,1747927838555,-500.0,0.00019998,2]
[361993411,1747927838566,-500.0,0.00019998,2]
[361993413,1747927838576,-500.0,0.00019998,2]
[361993415,1747927838586,-500.0,0.00019998,2]
[361993417,1747927838596,-20610.7700024,0.0002,2]
[361993418,1747927838605,-304.0,0.0002,2]
[361993419,1747927838614,-180.34479182,0.00020058,2]
[361993420,1747927838623,-166.0,0.00020274,2]
[361993421,1747927838633,-212.4501065,0.000203,3]
[361993422,1747927838643,-7159.03698844,0.000203,3]
[361993423,1747927838652,-7159.03698822,0.000203,3]
[361993424,1747927838661,-7159.03698822,0.000203,3]
[361993425,1747927838670,-7159.03698822,0.000203,3]
[361993426,1747927838679,-7159.03698822,0.000203,3]
[361993427,1747927838689,-7159.03698822,0.000203,3]
[361993428,1747927838698,-7159.03698822,0.000203,3]
[361993429,1747927838710,-314.54559427,0.000203,3]
[361993430,1747927838720,-7159.03698822,0.00020348,3]
[361993431,1747927838729,-500.0,0.00020431,2]
[361993432,1747927838742,-300.0,0.00020554,2]
[361993433,1747927838752,-7159.03698822,0.00020555,3]
[361993434,1747927838762,-21466.21523079,0.0002061,2]
[361993435,1747927838772,-506.25609039,0.00020705,2]
[361993436,1747927838781,-7159.03698822,0.00020762,3]
[361993437,1747927838790,-755.8811112,0.000209,2]
[361993438,1747927838799,-1000.34011564,0.00020933,2]
[361993439,1747927838811,-662.37085689,0.00020934,30]
[361993440,1747927838821,-162.474762,0.00020951,2]
[361993441,1747927838831,-7159.03698822,0.00020969,4]
[361993442,1747927838840,-100000.0,0.0002099,2]
[361993443,1747927838850,-1000.0,0.00021,2]
[361993444,1747927838860,-1000.0,0.00021,2]
[361993445,1747927838869,-267.5020672,0.00021,2]
[361993446,1747927838878,-207.4,0.00021124,2]
[361993447,1747927838887,-5000.0,0.00021124,2]
[361993448,1747927838896,-5000.0,0.00021124,2]
[361993449,1747927838906,-5000.0,0.00021124,2]
[361993450,1747927838915,-5000.0,0.00021124,2]
[361993451,1747927838924,-5000.0,0.00021124,2]
[361993452,1747927838934,-5000.0,0.00021124,2]
[361993453,1747927838943,-151.0,0.00021124,2]
[361993454,1747927838953,-1384.56056873,0.00021124,2]
[361993455,1747927838964,-7159.03698822,0.00021176,4]
[361993456,1747927838973,-7159.03698822,0.00021383,5]
[361993457,1747927838983,-1151.0,0.00021408,2]
[361993458,1747927838992,-288.0,0.00021428,2]
[361993459,1747927839001,-1500.0,0.00021543,2]
[361993460,1747927839011,-7159.03698822,0.0002159,5]
[361993461,1747927839019,-755.88111119,0.00021609,2]
[361993463,1747927839029,-5000.0,0.00021672,2]
[361993465,1747927839039,-475.42,0.00021673,2]
[361993466,1747927839049,-7159.03698822,0.00021797,6]
[361993468,1747927839058,-151.0,0.000218,4]
[361993470,1747927839068,-6915.9188261,0.00021904,3]
[361993472,1747927839078,-430.0,0.00021917,2]
[361993474,1747927839088,-430.0,0.00021917,2]
[361993476,1747927839100,-400.0,0.00021917,2]
[361993478,1747927839109,-430.0,0.00021917,2]
[361993481,1747927839119,-290.0,0.00021917,2]
[361993483,1747927839129,-538.14402224,0.00021917,2]
[361993485,1747927839138,-430.0,0.00021917,2]
[361993487,1747927839148,-430.0,0.00021917,2]
[361993489,1747927839158,-430.0,0.00021917,2]
[361993491,1747927839168,-430.0,0.00021917,2]
[361993493,1747927839178,-430.0,0.00021917,2]
[361993495,1747927839187,-390.0,0.00021917,2]
[361993497,1747927839197,-430.0,0.00021917,2]
[361993499,1747927839208,-430.0,0.00021917,2]
[361993501,1747927839217,-430.0,0.00021917,2]
[361993503,1747927839229,-430.0,0.00021917,2]
[361993505,1747927839239,-430.0,0.00021917,2]
[361993507,1747927839248,-430.0,0.00021917,2]
[361993509,1747927839258,-370.0,0.00021917,2]
[361993511,1747927839268,-393.87415842,0.00021917,2]
[361993513,1747927839277,-430.0,0.00021917,2]
[361993515,1747927839288,-430.0,0.00021917,2]
[361993517,1747927839298,-430.0,0.00021917,2]
[361993519,1747927839308,-430.0,0.00021917,2]
[361993521,1747927839318,-2376.5,0.00021917,2]
[361993523,1747927839327,-430.0,0.00021917,2]
[361993525,1747927839337,-340.0,0.00021917,2]
[361993527,1747927839346,-430.0,0.00021917,2]
[361993529,1747927839356,-430.0,0.00021917,2]
[361993531,1747927839366,-400.0,0.00021917,2]
[361993533,1747927839375,-441.02540797,0.00021917,2]
[361993535,1747927839386,-544.08010736,0.00021917,2]
[361993537,1747927839396,-370.0,0.00021917,2]
[361993539,1747927839405,-430.0,0.00021917,2]
[361993541,1747927839415,-936.78,0.00021917,2]
[361993543,1747927839424,-522.0,0.00021917,2]
[361993545,1747927839434,-401.01655798,0.00021917,2]
[361993547,1747927839444,-430.0,0.00021917,2]
[361993549,1747927839454,-430.0,0.00021917,2]
[361993551,1747927839464,-1072.81,0.00021917,2]
[361993553,1747927839473,-430.0,0.00021917,2]
[361993555,1747927839482,-430.0,0.00021917,2]
[361993557,1747927839492,-430.0,0.00021917,2]
[361993559,1747927839502,-420.0,0.00021917,2]
[361993561,1747927839511,-420.0,0.00021917,2]
[361993563,1747927839520,-470.0,0.00021917,2]
[361993565,1747927839530,-430.0,0.00021917,2]
[361993567,1747927839540,-430.0,0.00021917,2]
[361993570,1747927839550,-992.91,0.00021917,2]
[361993572,1747927839559,-430.0,0.00021917,2]
[361993574,1747927839569,-430.0,0.00021917,2]
[361993576,1747927839579,-504.42560679,0.00021917,2]
[361993578,1747927839588,-430.0,0.00021917,2]
[361993580,1747927839598,-402.09002681,0.00021917,2]
[361993582,1747927839607,-430.0,0.00021917,2]
[361993584,1747927839617,-430.0,0.00021917,2]
[361993586,1747927839627,-498.64,0.00021917,2]
[361993588,1747927839637,-430.0,0.00021917,2]
[361993590,1747927839646,-385.52632558,0.00021917,2]
[361993592,1747927839656,-1214.74,0.00021917,2]
[361993594,1747927839668,-430.0,0.00021917,2]
[361993596,1747927839679,-430.0,0.00021917,2]